Cogmind - Beta 11.1 @@@ ROGUE MODE // 2022.05.01 @ 15:51:35 // Winter2019/RPGLIKE Player: Kiks Result: Self-destructed Performance ------------- Evolutions (1) 500 Regions Visited (5) 1000 Robots Destroyed (46) 230 Value Destroyed (890) 890 Prototype IDs (24) 480 Alien Tech Used (0) 0 Bonus (359) 359 TOTAL SCORE: 3459 Bonus ------- High Alert Combat Kills 45 Follower Combat Kills 14 Aligned with FarCom 300 Cogmind --------- Core Integrity 221/600 Matter 440/450 Energy 160/160 System Corruption 14% Temperature Cool (0) Movement Hovering (68) Location -9/Exiles Parts ------- > --- POWER (1) -------- Light Nuclear Core > --- PROPULSION (4) --- Combat Airjet Combat Airjet Combat Airjet Combat Airjet > --- UTILITY (4) ------ Large Matter Pod Sensor Array Trap Extractor (0/4) Thief Drone Bay (3/3) > --- WEAPON (3) ------- (None) > --- INVENTORY (3) ---- Light Assault Rifle Heavy Battle Rifle Rocket Launcher Peak State ------------ > --- POWER ------------ Light Nuclear Core > --- PROPULSION ------- Combat Airjet Combat Airjet Combat Airjet Combat Airjet > --- UTILITY ---------- Large Matter Pod Sensor Array Trap Extractor Thief Drone Bay > --- WEAPON ----------- (None) > --- INVENTORY -------- Light Assault Rifle Heavy Battle Rifle [Rating: 34] Favorites ----------- Power Light Nuclear Core Engine Light Ion Engine Power Core Light Nuclear Core Propulsion Aluminum Leg Leg Aluminum Leg Hover Unit Combat Airjet Utility Large Matter Pod Device Trap Extractor Storage Large Matter Pod Processor Visual Processing Unit Weapon Light Assault Rifle Ballistic Gun Light Assault Rifle Build | -11 -10 -10 -9 -9 -9 ------- Run | Scr Mat Min Mat Min Exi Slots Evolved 8 | 3 . . 4 . 1 Power . | . . . . . . Propulsion 3 | 1 . . 2 . . Utility 3 | 1 . . 1 . 1 Weapon 2 | 1 . . 1 . . Parts Attached 23 | 5 4 2 5 6 1 Power 3 | 1 1 1 . . . Engine 2 | 1 1 . . . . Core 1 | . . 1 . . . Reactor . | . . . . . . Propulsion 11 | 2 . . 3 6 . Treads . | . . . . . . Leg 2 | 2 . . . . . Wheel . | . . . . . . Hover 9 | . . . 3 6 . Flight . | . . . . . . Utility 5 | . 2 . 2 . 1 Device 3 | . . . 2 . 1 Storage 1 | . 1 . . . . Processor 1 | . 1 . . . . Hackware . | . . . . . . Protection . | . . . . . . Artifact . | . . . . . . Weapon 4 | 2 1 1 . . . Energy Gun . | . . . . . . Energy Cannon . | . . . . . . Ballistic Gun 4 | 2 1 1 . . . Ballistic Cannon . | . . . . . . Launcher . | . . . . . . Special Weapon . | . . . . . . Impact Weapon . | . . . . . . Slashing Weapon . | . . . . . . Piercing Weapon . | . . . . . . Special Melee Weapon . | . . . . . . Unidentified Prototypes 1 | . . . . . 1 Corrupted Parts 2 | . . . . 2 . System Corruption 14 | . . . . 14 . Parts Lost . | . . . . . . Power . | . . . . . . Propulsion . | . . . . . . Utility . | . . . . . . Weapon . | . . . . . . Highest Loss Streak . | . . . . . . To Critical Strikes . | . . . . . . Average Slot Usage (%) 92 | . 79 100 94 87 75 Engine 4 | . 14 11 . . . Core 7 | . . 2 12 9 8 Leg 17 | . 28 28 19 . . Hover 11 | . . . 7 33 33 Device 8 | . . . 9 18 25 Storage 10 | . 1 14 12 9 8 Processor 6 | . 7 14 5 . . Ballistic Gun 23 | . 28 28 25 18 . Naked Turns . | . . . . . . Heaviest Build 16 | 5 8 13 16 16 15 Greatest Support 48 | 20 20 20 20 48 48 Greatest Overweight (x) . | . . . . . . Average Overweight (x) . | . . . . . . Largest Inventory Capacity 3 | 3 3 3 3 3 3 Average Capacity 2 | 2 3 3 3 3 3 Most Carried 3 | . 2 3 3 3 3 Average Carried 2 | . 1 2 2 2 2 Final Capacity 3 | 3 3 3 3 3 3 Final Carried 3 | . 2 3 2 3 3 Class Distribution -------------------- 62% | Mutant 37% | Scavenger-Mutant Dominant Class ---------------- Mutant | -10/Materials Mutant | -10/Mines Mutant | -9/Materials Scavenger-Mutant | -9/Mines Scavenger-Mutant | -9/Exiles Resources | -11 -10 -10 -9 -9 -9 ----------- Run | Scr Mat Min Mat Min Exi Matter Collected 1256 | 161 223 182 455 235 . Remotely . | . . . . . . Salvage Created 1492 | . 223 186 847 236 . Parts 108 | . 16 13 73 6 . Haulers Intercepted 7 | . 2 . 5 . . Recyclers Shooed 2 | . 2 . . . . Parts Field Recycled . | . . . . . . Retrieved Matter . | . . . . . . Parts Self-Destructed . | . . . . . . Prevented . | . . . . . . Kills | -11 -10 -10 -9 -9 -9 ------- Run | Scr Mat Min Mat Min Exi Combat Hostiles Destroyed 36 | . 4 3 20 9 . Guns 36 | . 4 3 20 9 . Classes Destroyed 9 | . 5 2 1 1 . Worker 2 | . . 1 1 . . Tunneler 1 | . . 1 . . . Hauler 7 | . 2 . 5 . . Recycler 3 | . 1 . 2 . . Watcher 4 | . 1 . 3 . . Swarmer 13 | . 3 1 9 . . Grunt 11 | . 1 2 6 2 . Sentry 5 | . . . 5 . . Assembled 7 | . . . . 7 . Best Kill Streak 8 | . 3 2 8 2 . Combat Bots Only 7 | . 3 2 7 2 . Max Kills in Single Turn 2 | . 1 1 2 1 . Gunslinging 1 | . . . 1 . . Exploded . | . . . . . . Melee . | . . . . . . Uniques/NPCs Destroyed . | . . . . . . Combat | -11 -10 -10 -9 -9 -9 -------- Run | Scr Mat Min Mat Min Exi Damage Taken 1248 | . 103 74 693 378 . Core 1037 | . 86 62 578 311 . Absorbed by Shields . | . . . . . . Redirected to Core 700 | . 59 39 368 234 . Core Remaining (%) 94 | 100 . 89 . . . Volleys Fired 181 | . 28 12 99 42 . Largest 2 | . 2 2 2 2 . Hottest 53 | . 40 53 53 53 . Shots Fired 358 | . 56 24 198 80 . Gun 358 | . 56 24 198 80 . Cannon . | . . . . . . Launcher . | . . . . . . Special . | . . . . . . Kinetic 358 | . 56 24 198 80 . Thermal . | . . . . . . Explosive . | . . . . . . Electromagnetic . | . . . . . . Robot Hit Streak 9 | . 8 6 9 4 . Robot Miss Streak 5 | . 3 3 4 5 . Penetration Max . | . . . . . . Secondary Targets 3 | . 1 . 2 . . Max Gunslinging Chain 1 | . 1 . 1 . . Shots Hit Robots 210 | . 37 15 120 38 . Core Hits 89 | . 14 8 49 18 . Critical Kills 1 | . . . . 1 . Critical Parts Destroyed 4 | . . . 4 . . Critical Strikes 5 | . . . 4 1 . Destroy 5 | . . . 4 1 . Melee Attacks . | . . . . . . Impact . | . . . . . . Slashing . | . . . . . . Piercing . | . . . . . . Sneak Attacks . | . . . . . . Combat Hostiles . | . . . . . . Follow-up Attacks . | . . . . . . Damage Inflicted 3083 | . 292 200 2040 551 . Guns 3083 | . 292 200 2040 551 . Cannons . | . . . . . . Explosions . | . . . . . . Melee . | . . . . . . Ramming . | . . . . . . Kinetic 3083 | . 292 200 2040 551 . Thermal . | . . . . . . Explosive . | . . . . . . Electromagnetic . | . . . . . . Impact . | . . . . . . Slashing . | . . . . . . Piercing . | . . . . . . Highest Corruption 14 | . 2 2 . 14 14 Average Corruption 6 | . 2 2 . 13 14 Corruption Purged . | . . . . . . Corruption Blocked . | . . . . . . Effects 32 | . . 7 . 22 3 Message Errors 10 | . . 2 . 6 2 Matter Fused 4 | . . 2 . 2 . Heat Flow Errors 3 | . . . . 3 . Energy Discharges 2 | . . . . 1 1 Parts Rejected 1 | . . . . 1 . Data Loss (minor) 5 | . . 2 . 3 . Data Loss (major) 2 | . . 1 . 1 . Alerts 1 | . . . . 1 . Weapon Failures 4 | . . . . 4 . Overload Shots . | . . . . . . Overflow Damage . | . . . . . . Projectiles . | . . . . . . Explosions . | . . . . . . Melee . | . . . . . . Knockbacks . | . . . . . . Impact . | . . . . . . Kinetic . | . . . . . . Secondary . | . . . . . . Self-Inflicted Damage . | . . . . . . Shots . | . . . . . . Rammed . | . . . . . . Targets Rammed . | . . . . . . Kicked . | . . . . . . Crushed . | . . . . . . Highest Temperature 248 | . 6 42 248 169 . Average Temperature 51 | . 6 14 54 52 . Received Heat Transfer 312 | . 18 18 150 126 . Siege Activations . | . . . . . . Robots Corrupted . | . . . . . . Combat Hostiles . | . . . . . . Parts Fried . | . . . . . . Impact Corruptions . | . . . . . . Robots Melted . | . . . . . . Combat Hostiles . | . . . . . . Parts Melted . | . . . . . . Heat Transferred . | . . . . . . Parts Sabotaged . | . . . . . . Parts Stolen . | . . . . . . Parts Stripped . | . . . . . . Power Chain Reactions . | . . . . . . Missiles Intercepted . | . . . . . . Alert | -11 -10 -10 -9 -9 -9 ------- Run | Scr Mat Min Mat Min Exi Peak Influence 593 | . 131 142 593 249 . Initial 231 | . . 51 21 231 . Average 177 | . 78 56 336 181 . Maximum Alert Level 2 | . . . 2 1 . Low Security (%) 57 | 100 100 100 15 34 . Level 1 31 | . . . 46 65 . Level 2 11 | . . . 37 . . Level 3 . | . . . . . . Level 4 . | . . . . . . Level 5 . | . . . . . . High Security . | . . . . . . Max Security . | . . . . . . Squads Dispatched 2 | . . . 2 . . Investigation . | . . . . . . Extermination . | . . . . . . Reinforcement 2 | . . . 2 . . Assault . | . . . . . . Garrison . | . . . . . . Intercept . | . . . . . . Searches Triggered . | . . . . . . Construction Impeded . | . . . . . . Haulers Reinforced . | . . . . . . Active Scanning Responses . | . . . . . . Cargo Convoy Interrupts . | . . . . . . Stealth | -11 -10 -10 -9 -9 -9 --------- Run | Scr Mat Min Mat Min Exi Distress Signals 3 | . . . 2 1 . Communications Jammed . | . . . . . . Distress Signals . | . . . . . . Times Spotted 50 | . 5 4 29 12 . Peak Tracking Total 7 | . 3 2 7 2 . Tactical Retreats 2 | . . . . 2 . Traps | -11 -10 -10 -9 -9 -9 ------- Run | Scr Mat Min Mat Min Exi Traps Triggered 3 | . 3 . . . . Indirectly . | . . . . . . Trap Hack Attempts . | . . . . . . Triggered . | . . . . . . Disarmed . | . . . . . . Reprogrammed . | . . . . . . Reused . | . . . . . . Traps Extracted . | . . . . . . Installed . | . . . . . . Triggered . | . . . . . . Machines | -11 -10 -10 -9 -9 -9 ---------- Run | Scr Mat Min Mat Min Exi Machines Disabled 3 | . . . 3 . . Max in Single Turn 1 | . . . 1 . . Machines Sabotaged . | . . . . . . Garrisons Compromised . | . . . . . . Overloaded Fab Kills . | . . . . . . Hacking | -11 -10 -10 -9 -9 -9 --------- Run | Scr Mat Min Mat Min Exi Machines Accessed 6 | . 1 2 2 . 1 Terminals 4 | . 1 1 2 . . Fabricators . | . . . . . . Repair Stations . | . . . . . . Recycling Units . | . . . . . . Scanalyzers . | . . . . . . Garrison Access . | . . . . . . Total Hacks 10 | . 2 2 5 . 1 Successful 7 | . 2 2 2 . 1 Failed 3 | . . . 3 . . Catastrophic . | . . . . . . Database Lockouts . | . . . . . . Manual 8 | . 2 1 4 . 1 Terminals 8 | . 2 1 5 . . Fabricators . | . . . . . . Repair Stations . | . . . . . . Recycling Units . | . . . . . . Scanalyzers . | . . . . . . Garrison Access . | . . . . . . Terminal Hacks 5 | . 1 2 1 . 1 Record 1 | . . . 1 . . Open Door 1 | . . 1 . . . Unreport Threat 1 | . 1 . . . . Zone Layout 1 | . . 1 . . . EX-Prototype ID Bank 1 | . . . . . 1 Fabricator Hacks . | . . . . . . Repair Station Hacks . | . . . . . . Recycling Unit Hacks . | . . . . . . Scanalyzer . | . . . . . . Garrison Access Hacks . | . . . . . . Unauthorized Hacks 2 | . 1 . 1 . . Terminals 2 | . 1 . 1 . . Botnet 2 | . 1 . 1 . . Fabricators . | . . . . . . Repair Stations . | . . . . . . Recycling Units . | . . . . . . Scanalyzers . | . . . . . . Garrison Access . | . . . . . . Data Cores Recovered . | . . . . . . Used . | . . . . . . Hacking Detections 3 | . . 1 2 . . Full Trace Events . | . . . . . . Feedback Events . | . . . . . . Feedback Blocked . | . . . . . . Robot Schematics Acquired . | . . . . . . Robots Built . | . . . . . . Authchips . | . . . . . . Time . | . . . . . . Total Robot Build Rating . | . . . . . . Part Schematics Acquired . | . . . . . . Parts Built . | . . . . . . Authchips . | . . . . . . Time . | . . . . . . Total Part Build Rating . | . . . . . . Parts Repaired . | . . . . . . Time . | . . . . . . Parts Recycled . | . . . . . . Recycled Matter . | . . . . . . Retrieved Matter . | . . . . . . Retrieved Components . | . . . . . . Parts Scanalyzed . | . . . . . . Part Schematics Acquired . | . . . . . . Parts Damaged . | . . . . . . Bothacking | -11 -10 -10 -9 -9 -9 ------------ Run | Scr Mat Min Mat Min Exi Used RIF Installer . | . . . . . . Robots Hacked . | . . . . . . Non-combat . | . . . . . . Combat . | . . . . . . Robot Hacks Applied . | . . . . . . Relay Couplers Released . | . . . . . . Fabnet Peak Effective % . | . . . . . . Robots Rewired . | . . . . . . Allies Hacked . | . . . . . . Hacks Repelled . | . . . . . . Allies | -11 -10 -10 -9 -9 -9 -------- Run | Scr Mat Min Mat Min Exi Total Allies 1 | . . 1 . . . Largest Group 1 | . . 1 . . . Highest-Rated Group 31 | . . 31 . . . Highest-Rated Ally 31 | . . 31 . . . Total Orders . | . . . . . . Ally Attacks 2 | . . 2 . . . Total Damage 41 | . . 41 . . . Kills 2 | . . 2 . . . Allies Corrupted . | . . . . . . Allies Melted . | . . . . . . Intel | -11 -10 -10 -9 -9 -9 ------- Run | Scr Mat Min Mat Min Exi Robot Analysis Total . | . . . . . . Derelict Logs Recovered 4 | . . 2 . 2 . Drone Launches . | . . . . . . Drone Recoveries . | . . . . . . Exploration | -11 -10 -10 -9 -9 -9 ------------- Run | Scr Mat Min Mat Min Exi Turns Passed 2476 | 37 259 741 745 613 81 Spaces Moved 1960 | 30 143 579 476 620 112 Core 8 | 8 . . . . . Treads . | . . . . . . Legs 1014 | 22 143 579 270 . . Wheels . | . . . . . . Hover 938 | . . . 206 620 112 Flight . | . . . . . . Fastest Speed 50 | 50 120 120 52 52 68 Average Speed 92 | 101 120 120 90 66 68 Slowest Speed 120 | 120 120 120 120 72 68 Overloaded Moves . | . . . . . . Propulsion Burnouts . | . . . . . . Robots Hopped . | . . . . . . Cave-ins Triggered . | . . . . . . Exploration Rate (%) 54 | 3 30 98 55 99 41 Regions Visited 5 Branch Regions 3 Pre-discovered Areas 1 | . . . . 1 . Known Exits Taken . | . . . . . . Unknown Exits Taken 5 | 1 1 1 1 1 . Scrap Searched 4 | . . 1 . 3 . Spaces Dug . | . . . . . . Terrain Destroyed 17 | . . 2 9 6 . Melee . | . . . . . . Projectile 17 | . . 2 9 6 . AOE . | . . . . . . Terrain Rammed . | . . . . . . Walls Destroyed . | . . . . . . Machines Disabled . | . . . . . . Actions | -11 -10 -10 -9 -9 -9 --------- Run | Scr Mat Min Mat Min Exi Total 2295 | 34 183 604 611 745 118 Wait 79 | . . 9 . 70 . Move 1955 | 29 142 578 475 619 112 Hop . | . . . . . . Pick Up 6 | . 2 1 1 1 1 Fast Attach 19 | 5 4 2 3 5 . Attach 3 | . . . 2 . 1 Detach 2 | . . . . . 2 Swap 1 | . . . . 1 . Drop 11 | . . 2 3 4 2 Fire 181 | . 28 12 99 42 . Melee . | . . . . . . Ram . | . . . . . . Kick . | . . . . . . Crush . | . . . . . . Escape Stasis . | . . . . . . Rewire . | . . . . . . Trap . | . . . . . . Miscellaneous 38 | . 7 . 28 3 . Route ------- -11/Scrapyard -10/Materials -10/Mines (discovered 2 exits: *Mat x2) -9/Materials (discovered 4 exits: [*Mat x2] / [*Min] / [*Sto]) -9/Mines (discovered 3 exits: [*Mat x2] / *Exi) -9/Exiles History --------- Turn | Location | Event 11 | -11/Scrapyard | Upgraded with Propulsion slot (x1) 11 | -11/Scrapyard | Upgraded with Utility slot (x1) 11 | -11/Scrapyard | Upgraded with Weapon slot (x1) 12 | -11/Scrapyard | Discovered new exit (range 15) 38 | -11/Scrapyard | Entered Materials 256 | -10/Materials | Discovered new exit (range 11) 297 | -10/Materials | Entered Mines 309 | -10/Mines | Discovered new exit (range 3) 314 | -10/Mines | Build established: Mutant 374 | -10/Mines | Found the Drone Emporium 382 | -10/Mines | Found Prototype Device 428 | -10/Mines | A weapon hastily lodged in a ceiling crevice suddenly fell to the ground 517 | -10/Mines | Received a Mining Laser from a helpful Derelict 537 | -10/Mines | Discovered new exit (range 8) 566 | -10/Mines | Learned Materials emergency access door positions 868 | -10/Mines | Reached level 2 995 | -10/Mines | Learned Materials trap positions 1038 | -10/Mines | Entered Materials 1039 | -9/Materials | Loaded intel: 13 trap records 1040 | -9/Materials | Reached level 3 1182 | -9/Materials | Discovered new exit (range 13) 1274 | -9/Materials | Reached level 4 1286 | -9/Materials | Discovered new exit (range 11) 1565 | -9/Materials | Upgraded with Propulsion slot (x2) 1565 | -9/Materials | Upgraded with Utility slot (x1) 1565 | -9/Materials | Upgraded with Weapon slot (x1) 1576 | -9/Materials | Discovered new exit (range 16) 1682 | -9/Materials | Reached level 5 1706 | -9/Materials | Destroyed 7 combat bots 1735 | -9/Materials | Discovered new exit (range 7) 1783 | -9/Materials | Entered Mines 1794 | -9/Mines | Learned location of 1 exit from Materials 1799 | -9/Mines | Received a Rocket Launcher from a helpful Derelict 1821 | -9/Mines | Assembled infested the area 1828 | -9/Mines | Learned location of Storage (-9) 1876 | -9/Mines | Build established: Scavenger-Mutant 1945 | -9/Mines | System corruption reached 10% 2034 | -9/Mines | Discovered new exit (range 7) 2170 | -9/Mines | Learned 8 Materials zone layouts 2358 | -9/Mines | Discovered new exit (range 5) 2365 | -9/Mines | Core integrity fell below 50% 2393 | -9/Mines | Deemed a non-threat by the Exiles lab entrance 2393 | -9/Mines | Discovered new exit (range 5) 2396 | -9/Mines | Entered Exiles 2398 | -9/Exiles | Upgraded with Utility slot (x1) 2398 | -9/Exiles | Identified Thief Drone Bay 2418 | -9/Exiles | Met 8R-AWN 2429 | -9/Exiles | Met EX-HEX 2448 | -9/Exiles | Met EX-BIN 2458 | -9/Exiles | Aligned with FarCom system 2458 | -9/Exiles | Given EX-Vault access code 2474 | -9/Exiles | Opened EX-Vault 2477 | -9/Exiles | Self-destructed Last Messages --------------- Modified TNC 0b10 Alert Chip Cloak of Protection Skeleton Box Trap Reconfigurator Supersonic Drone Bay Army-in-a-Box PSU Rigger Chronowheel AWS/Thermal Latent Energy Streamer Gui. Plasma Cannon Firepult YOLO Cannon AWS/Gauss XL Autogun Array AWS/Autocannon Field Lobotomy Kit Longsword +1 Deploy-a-Sentry Map ----- +----------------------------------------------------+ | | | | | | | | | | | | | | | | | | | | | | | | | | | | | | | | | | | | | | | | | ???????????????????#########?????????????????????? | | ???????????????????# ! #?????????????????????? | | ???????????????????# ! #?????????????????????? | | ???????????????????# ! #?????????????????????? | | ???????????????????# X#?????????????????????? | | ???????????????????## @#??????????????????????? | | ???????????????????#X #??????????????????????? | | ???????????????????## #??????????????????????? | | ????????????????????# #??????????????????????? | | ????????????????????# #???###????????????????? | | ????????????????????# #??"""""???????????????? | | ????????????????????# ## """???????????????? | | ????????????????????# X""???????????????? | | ????????????????????# ## """???????????????? | | ??????????????####??# #??"""""???????????????? | | ??????????????"""""?# #???#??????????????????? | | ?????????????"""" ## #??????????????????????? | | ????????????#""X" #??????????????????????? | | ????????????#" #??????????????????????? | | ????????????#" ## #??????????????????????? | | ????????????#""""""?# #?#########????????????? | | ????????????##"###??# #?#"""""""#????????????? | | ????????????????????# #?#"""""""#????????????? | | ????????????????????# #?#"""""""#????????????? | | ???????????????????## ###"" """"#????????????? | | ???????????????????#" """"#????????????? | | ???????????????????#" """#????????????? | | ???????????????????#" """#????????????? | | ???????????????????#" """#????????????? | | ???????????????????#" """#????????????? | +----------------------------------------------------+ Best States ------------- Heat Dissipation 25 Energy Generation 14 Energy Capacity 160 Matter Stores 450 Matter Capacity 450 Sight Range 18 Robot Scan Range 14 Terrain Scan Density 10 Evasion (%) 55 Trap Extractor Capacity 4 Item Schematics ----------------- None Robot Schematics ------------------ None Fabricated ------------ Nothing Alien Tech Used ----------------- None Achievements -------------- None Challenges ------------ None RPGLIKE | -11 -10 -10 -9 -9 -9 --------- Run | Scr Mat Min Mat Min Exi Levels Raised 4 | . . 1 3 . . XP Earned 10337 | 3000 555 1156 4526 750 350 XP Spent 7600 | 3000 . . 3500 . 1100 Upgrades 11 | 6 . . 4 . 1 Propulsion Slot 3 | 1 . . 2 . . Utility Slot 3 | 1 . . 1 . 1 Weapon Slot 2 | 1 . . 1 . . Inventory Capacity 3 | 3 . . . . . Protomatter Created 303 | . 75 . 221 7 . Integrity Restored 751 | . 125 . 575 51 . Core 658 | . 86 . 521 51 . Parts 93 | . 39 . 54 . . Protomatter Decayed 88 | . 31 . 27 30 . Game ------ Seed ElectronAuthchipSuperbattery Manual? 0 Play Time 00:18:24 Cumulative 113.2 hours Start 2022.05.01 @ 15:32:28 End 2022.05.01 @ 15:51:35 Sessions 1 Manual Loads 0 Difficulty Rogue Special Mode Winter2019/RPGLIKE Game No. 72 Rogue 33 Adventurer 5 Explorer 34 Win Type - Total 19 Types 10/0/4/4/1/0/0/0/0 Lore% 71 Gallery% 70 Achievement% 76 Wizard Run 0 Options --------- ASCII 0 Keyboard 0 Movement Mouse Keybinds 0 Fullscreen 1 Font 12/Terminus Map View 83x54 Tactical HUD 1 Map Filters NONE Filters NONE Steam 1 RUN: bc5b35ce-0e67-4b39-8856-93f16b8493a7